bitfinex/quotes_ETHUSD_20241001
["timestamp","ask_amount","ask_price","bid_price","bid_amount"]
[1727798599147,0.05,2529.7,2529.5,3.95321]
[1727798599148,0.05,2529.6,2529.5,3.95321]
[1727798599894,0.05,2529.6,2529.5,4.03226089]
[1727798600699,0.05,2529.6,2529.5,7.58226089]
[1727798601554,0.1,2530.2,2530.1,7.50241]
[1727798601846,0.1,2530.2,2530.1,7.58144059]
[1727798602013,0.05,2530.2,2530.1,8.83395965]
[1727798602217,0.05,2530.2,2530.1,8.75492906]
[1727798602442,0.1,2530.6,2530.5,7.50178]
[1727798602641,0.1,2530.6,2530.5,7.52230221]
[1727798602849,0.1,2530.6,2530.5,8.66972443]
[1727798603143,0.1,2530.6,2530.5,8.64920222]
[1727798603725,0.1,2530.6,2530.5,14.18848422]
[1727798603962,0.1,2530.6,2530.5,13.45018422]
[1727798604661,0.1,2530.6,2530.5,8.64920222]
[1727798609050,0.1,2530.6,2530.5,9.64040222]
[1727798609251,0.05,2530.6,2530.5,9.64040222]
[1727798609561,0.05,2531.0,2530.8,6.95131]
[1727798609751,0.05,2531.0,2530.9,8.27364827]
[1727798610158,0.05,2531.0,2530.9,9.26484827]
[1727798610592,0.05,2531.0,2530.9,16.84760427]
[1727798610880,0.05,2531.0,2530.9,15.39491327]
[1727798611086,0.05,2531.0,2530.9,13.35064827]
[1727798611291,0.05,2531.0,2530.9,11.99909527]
[1727798612991,0.05,2531.0,2530.9,11.00789527]
[1727798613195,0.05,2531.0,2530.9,6.95116]
[1727798613345,0.05,2530.9,2530.8,3.95123]
[1727798613549,0.05,2530.8,2530.7,3.95146]
[1727798613745,0.1,2530.3,2530.2,3.95217]
[1727798613984,0.1,2530.3,2530.2,4.841745]
[1727798616405,0.05,2529.4,2529.3,4.94476]
[1727798616605,0.05,2529.4,2529.3,7.872304]
[1727798616904,0.05,2529.4,2529.3,3.95356]
[1727798618351,0.05,2529.4,2529.3,12.2262367]
[1727798618686,0.05,2529.6,2529.5,4.94455]
[1727798618888,1.5758,2530.3,2529.7,4.50303]
[1727798618889,0.05,2529.8,2529.7,4.50303]
[1727798619089,0.05,2529.8,2529.7,20.519073]
[1727798619383,0.05,2529.9,2529.8,4.50288]
[1727798619593,0.05,2529.9,2529.8,7.50288]
[1727798619897,0.05,2529.9,2529.8,9.04379]
[1727798620300,0.05,2530.0,2529.8,9.04379]
[1727798620588,0.05,2530.0,2529.9,7.50272]
[1727798622768,0.05,2530.0,2529.9,7.54634853]
[1727798623295,0.05,2530.0,2529.9,7.50272]
[1727798623469,0.05,2530.0,2529.9,9.13423955]
[1727798624095,0.05,2530.1,2530.0,7.50256]
[1727798624392,0.05,2530.2,2530.1,7.50241]
[1727798625599,0.1,2530.2,2530.1,7.50241]
[1727798626050,0.05,2530.2,2530.1,21.474668]
[1727798626258,0.05,2530.2,2530.1,20.090752]
[1727798626456,0.05,2530.5,2530.1,20.090752]
[1727798626457,0.05,2530.4,2530.3,3.9521]
[1727798626996,0.05,2530.4,2530.3,7.5021]
[1727798627191,0.05,2530.4,2530.3,9.13361955]
[1727798627593,0.05,2530.4,2530.3,30.01916855]
[1727798627805,0.05,2530.4,2530.3,26.68708955]
[1727798628092,0.05,2530.4,2530.3,25.25795955]
[1727798628393,0.05,2530.4,2530.3,21.34022555]
[1727798628953,0.05,2530.4,2530.3,8.58361955]
[1727798630293,0.05,2530.4,2530.3,9.13361955]
[1727798630500,0.05,2530.4,2530.3,21.56527155]
[1727798630797,0.05,2530.4,2530.3,16.72364555]
[1727798630960,19.98,2530.8,2530.4,7.50194]
[1727798630961,0.05,2530.6,2530.4,7.50194]
[1727798631158,0.05,2530.6,2530.5,25.613622]
[1727798631499,0.05,2530.6,2530.5,15.044647]
[1727798631703,0.05,2530.6,2530.5,12.329947]
[1727798631855,0.05,2530.6,2530.5,13.321147]
[1727798632252,0.05,2530.8,2530.5,13.321147]
[1727798632452,0.05,2531.0,2530.9,7.50116]
[1727798632660,0.1,2531.1,2531.0,8.4922]
[1727798632896,1.5203,2531.8,2531.0,8.4922]
[1727798632897,0.1,2531.3,2531.2,6.95069]
[1727798633110,0.05,2531.3,2531.2,7.50069]
[1727798633273,0.05,2531.4,2531.3,7.50053]
[1727798634030,0.05,2531.4,2531.3,24.680399]
[1727798634185,0.05,2531.4,2531.3,20.833492]
[1727798634391,0.05,2531.5,2531.4,7.50038]
[1727798634700,0.05,2531.6,2531.5,8.49142]
[1727798634890,0.05,2531.6,2531.5,28.40370355]
[1727798635086,0.05,2531.6,2531.5,27.56797555]
[1727798635314,0.05,2531.6,2531.5,23.16613155]
[1727798635630,0.05,2531.6,2531.5,21.48443855]
[1727798635788,0.05,2531.6,2531.5,14.75188255]
[1727798637014,0.05,2531.6,2531.5,13.14428255]
[1727798637845,0.05,2531.6,2531.5,9.03327855]
[1727798638202,0.05,2531.6,2531.5,12.55089255]
[1727798639131,0.1,2531.7,2531.6,7.50007]
[1727798639345,0.05,2531.7,2531.6,9.139441]
[1727798639639,7.38,2532.8,2531.6,9.139441]
[1727798639640,0.05,2531.9,2531.8,7.49975]
[1727798639987,0.05,2532.0,2531.9,7.4996]
[1727798640192,0.1,2532.3,2532.2,7.49913]
[1727798640402,0.05,2532.3,2532.2,7.49913]
[1727798640618,0.05,2532.3,2532.2,25.863907]
[1727798641027,0.05,2532.6,2532.5,7.49866]
[1727798641208,0.05,2532.9,2532.8,0.55]
[1727798641497,0.05,2533.1,2533.0,3.55]
[1727798641753,0.1,2533.1,2533.0,7.49788]
[1727798642128,0.1,2533.1,2533.0,6.94788]
[1727798642329,1.7566,2533.1,2533.0,6.94788]
[1727798642644,0.1,2533.1,2533.0,7.49788]
[1727798642846,0.1,2533.1,2533.0,9.037291]
[1727798644337,0.05,2533.1,2533.0,23.71062]
[1727798644536,0.1,2533.1,2533.0,23.71062]
[1727798644769,0.05,2533.1,2533.0,23.71062]
[1727798644963,0.05,2533.5,2533.0,23.71062]
[1727798644964,0.05,2533.4,2533.3,3.94742]
[1727798645290,0.05,2533.4,2533.3,9.333118]
[1727798645629,0.05,2533.4,2533.3,21.876496]
[1727798645832,0.05,2533.4,2533.3,14.630009]
[1727798646034,0.05,2533.4,2533.3,11.796909]
[1727798646764,0.05,2533.5,2533.4,7.49726]
[1727798646967,0.05,2533.5,2533.4,13.05348755]
[1727798647150,0.05,2533.5,2533.4,8.28578055]
[1727798647648,0.05,2533.5,2533.4,7.73578055]
[1727798648266,1.6585,2533.5,2533.4,4.73578055]
[1727798648464,1.6585,2533.5,2533.4,3.94726]
[1727798650455,1.6585,2533.5,2532.6,3.94849]
[1727798650456,0.1,2532.5,2532.4,3.9488]
[1727798651120,0.1,2532.5,2532.4,8.980859]
[1727798651537,0.05,2532.5,2532.4,9.45911428]
[1727798651854,0.05,2532.7,2532.6,3.94851]
[1727798652039,0.1,2533.1,2533.0,6.94788]
[1727798652246,0.1237391,2533.7,2533.0,6.94788]
[1727798652247,0.1,2533.3,2533.2,3.94757]
[1727798652585,0.1,2533.3,2533.2,19.705977]
[1727798652914,0.1,2533.3,2533.2,12.925059]
[1727798653261,0.1,2533.3,2533.2,9.23008512]
[1727798653756,1.6633,2533.3,2533.2,3.94757]
[1727798653954,1.6633,2533.3,2533.1,3.94771]
[1727798654109,1.6633,2533.3,2533.2,3.94757]
[1727798654712,1.6633,2533.3,2532.3,0.47825528]
[1727798654713,0.05,2532.3,2532.1,4.94047]
[1727798655017,0.05,2532.7,2532.1,4.94047]
[1727798655018,1.7054,2532.7,2532.6,3.94851]
[1727798655529,0.05,2532.7,2532.6,3.94851]
[1727798656253,0.05,2532.7,2532.6,6.94851]
[1727798657261,0.05,2532.7,2532.6,7.49851]
[1727798657555,0.05,2532.7,2532.6,21.468149]
[1727798657715,0.05,2532.7,2532.6,20.12627316]
[1727798658112,0.05,2532.7,2532.6,15.53479116]
[1727798659079,0.05,2532.7,2532.6,16.52599116]
[1727798659922,0.05,2532.7,2532.6,10.76068716]
[1727798660146,0.05,2532.7,2532.6,6.94851]
[1727798662395,0.05,2532.8,2532.7,6.94835]
[1727798662535,0.05,2532.8,2532.7,30.571987]
[1727798662733,0.05,2532.8,2532.7,28.30828]
[1727798662981,0.05,2532.8,2532.7,18.917688]
[1727798663184,0.05,2533.0,2532.9,6.94804]
[1727798663352,0.05,2533.0,2532.9,7.49804]
[1727798664192,1.5724,2533.4,2532.9,7.49804]
[1727798664193,0.05,2533.4,2533.2,3.55]
[1727798664350,0.05,2533.4,2533.3,8.247193]
[1727798664546,1.7064,2533.4,2533.3,6.94742]
[1727798665456,0.05,2533.4,2533.3,6.94742]
[1727798665667,0.05,2533.4,2533.3,7.49742]
[1727798665889,0.05,2533.4,2533.3,15.371067]
[1727798666046,0.05,2533.4,2533.3,6.94742]
[1727798666987,1.5893,2533.4,2533.3,3.0]
[1727798667293,1.5893,2533.4,2533.3,6.94742]
[1727798668281,1.5893,2533.4,2533.3,8.036917]
[1727798668857,1.5893,2533.4,2533.3,6.94742]
[1727798670174,1.5893,2533.4,2533.2,6.94755]
[1727798670447,1.5893,2533.4,2533.3,3.0]
[1727798671095,0.05,2533.0,2532.9,3.0]
[1727798671253,0.05,2533.0,2532.9,7.57697959]
[1727798671465,0.05,2533.0,2532.9,9.653997]
[1727798671712,0.05,2533.0,2532.9,9.57505741]
[1727798672208,0.05,2533.0,2532.9,9.04538296]
[1727798672706,0.05,2533.0,2532.9,25.56002696]
[1727798673260,0.05,2533.0,2532.9,22.89305696]
[1727798673462,0.05,2533.0,2532.9,20.70115696]
[1727798673700,0.05,2533.0,2532.9,12.45193496]
[1727798675308,0.05,2533.0,2532.9,11.38139396]
[1727798677922,0.05,2533.0,2532.9,9.04538296]
[1727798678128,0.05,2533.0,2532.9,3.94804]
[1727798678312,0.05,2532.8,2532.7,3.94826]
[1727798678605,0.05,2532.8,2532.0,6.79313757]
[1727798678606,0.05,2532.2,2532.1,3.94929]
[1727798679400,0.05,2532.0,2531.9,5.57452901]
[1727798679620,21.142,2532.0,2531.9,1.62500901]
[1727798679798,21.142,2532.0,2531.6,3.95005]
[1727798679799,21.6942,2532.0,2531.6,3.95005]
[1727798679995,21.6942,2532.0,2531.4,1.62500901]
[1727798679996,0.05,2531.5,2531.4,5.57526901]
[1727798680193,19.58,2531.5,2531.4,5.57526901]
[1727798680367,19.58,2531.5,2531.4,3.95026]
[1727798680567,0.05,2531.2,2531.1,3.95078]
[1727798680811,1.6545,2531.2,2531.1,3.95078]
[1727798681310,1.6545,2531.2,2531.1,4.740956]
[1727798681623,0.05,2531.2,2531.1,4.740956]
[1727798682112,0.05,2531.2,2531.1,7.740956]
[1727798682583,0.05,2531.2,2531.1,8.290956]
[1727798682906,0.05,2531.2,2531.1,11.643838]
[1727798683109,0.05,2531.2,2531.1,8.290956]
[1727798684086,0.05,2531.2,2531.1,12.487376]
[1727798684912,0.05,2531.2,2531.1,8.290956]
[1727798685106,0.05,2531.2,2531.1,12.342256]
[1727798686013,0.05,2531.2,2531.1,12.093456]
[1727798686368,0.05,2531.2,2531.1,8.290956]
[1727798687014,0.05,2531.2,2531.1,7.740956]
[1727798687517,1.6472,2531.2,2531.1,6.95078]
[1727798687674,1.6472,2531.2,2531.1,3.95078]
[1727798688311,1.6472,2531.2,2531.0,7.90191]
[1727798688474,1.6472,2531.2,2531.1,3.95085]
[1727798688690,1.6472,2531.2,2531.0,7.90179]
[1727798688879,1.6472,2531.2,2531.0,3.95089]
[1727798689084,1.6472,2531.2,2531.1,3.95085]
[1727798690917,1.6472,2531.2,2531.1,6.95085]
[1727798691213,1.6472,2531.2,2531.1,8.66608047]
[1727798691214,0.05,2531.2,2531.1,8.66608047]
[1727798691427,0.05,2531.2,2531.1,8.591024]
[1727798692778,0.05,2531.2,2531.1,6.95085]
[1727798693393,0.05,2531.2,2531.1,7.50085]
[1727798695523,0.05,2531.2,2531.1,3.95085]
[1727798696805,0.05,2531.2,2531.1,7.50085]
[1727798699204,0.05,2531.2,2531.1,6.95085]
[1727798699405,0.05,2531.2,2531.1,8.041024]
[1727798700229,0.05,2531.2,2531.1,8.591024]
[1727798700533,0.05,2531.2,2531.1,23.086861]
[1727798700708,0.05,2531.2,2531.1,21.584617]
[1727798700888,0.05,2531.2,2531.1,20.615652]
[1727798701089,0.05,2531.2,2531.1,8.041024]
[1727798701326,0.05,2531.2,2531.1,8.591024]
[1727798701838,0.05,2531.2,2531.1,12.262544]
[1727798701995,0.05,2531.2,2531.1,11.917846]
[1727798702534,0.05,2531.8,2531.7,3.94991]
[1727798702750,0.05,2531.8,2531.7,23.986534]
[1727798702888,0.05,2531.8,2531.7,23.281404]
[1727798703242,1.6597,2531.8,2531.7,3.0]
[1727798703529,0.05,2531.6,2531.5,3.0]
[1727798703733,25.08959,2531.8,2531.3,6.95045]
[1727798703734,1.6597,2531.4,2531.3,6.95045]
[1727798704044,1.6597,2531.4,2530.5,4.47199683]
[1727798704045,0.05,2530.8,2530.7,3.95136]
[1727798704192,0.05,2530.8,2530.6,3.95154]
[1727798704389,0.05,2530.8,2530.7,3.95147]
[1727798704733,0.05,2530.8,2530.6,3.95154]
[1727798704734,0.05,2530.8,2530.6,7.90303]
[1727798704902,0.05,2530.8,2530.7,3.95147]
[1727798705289,0.05,2530.8,2530.6,3.95149]
[1727798705485,0.05,2530.6,2530.2,3.95221]
[1727798705725,0.05,2530.6,2530.1,3.95235]
[1727798705726,0.05,2530.3,2530.1,3.95235]
[1727798705939,1.5753,2530.2,2530.1,3.95235]
[1727798706732,0.05,2530.3,2530.2,3.95225]
[1727798707029,0.05,2530.3,2530.2,4.44944748]
[1727798707215,0.05,2530.3,2530.2,3.95225]
[1727798707401,1.6253,2530.3,2530.2,3.95225]
[1727798707608,1.6253,2530.3,2529.5,0.9912]
[1727798707609,0.05,2529.7,2529.6,3.95313]
[1727798707932,0.05,2529.7,2529.6,3.95530151]
[1727798708996,0.05,2529.7,2529.6,4.50530151]
[1727798709323,0.05,2530.1,2529.8,7.50288]
[1727798709523,0.05,2530.1,2530.0,7.50256]
[1727798709735,0.05,2530.1,2530.0,22.18800571]
[1727798710039,0.05,2530.4,2530.3,7.5021]
[1727798710246,0.05,2530.4,2530.3,15.17041164]
[1727798710415,0.05,2530.4,2530.3,9.41436516]
[1727798712603,0.05,2530.4,2530.3,8.86436516]
[1727798712838,0.05,2530.4,2530.3,6.9521]
[1727798713044,0.05,2530.4,2530.3,7.5021]
[1727798713716,0.05,2530.4,2530.3,3.9521]
[1727798713929,0.05,2530.4,2530.3,4.56656501]
[1727798714446,0.05,2530.6,2530.5,4.50178]
[1727798714603,0.05,2530.6,2530.5,6.75055246]
[1727798714917,0.05,2530.6,2530.5,6.67153495]
[1727798715145,1.5909,2530.6,2530.5,6.95178]
[1727798715714,1.5909,2530.6,2530.4,3.95192]
[1727798716109,1.5909,2530.6,2530.5,3.95178]
[1727798716308,0.05,2530.3,2530.2,3.95213]
[1727798716502,1.6323,2530.3,2530.2,3.95213]
[1727798717743,1.6323,2530.3,2530.2,6.95213]
[1727798717950,1.6323,2530.3,2529.7,3.95294]
[1727798717951,0.05,2529.8,2529.7,6.95303]
[1727798718253,0.05,2529.8,2529.7,10.639184]
[1727798718606,0.05,2529.8,2529.7,12.09570564]
[1727798719316,0.05,2529.8,2529.7,12.64570564]
[1727798719864,0.05,2529.8,2529.7,8.043636]
[1727798720009,0.05,2529.8,2529.6,3.95303]
[1727798720347,7.38,2530.7,2529.3,3.95364]
[1727798720348,0.05,2529.5,2529.3,3.95364]
[1727798720550,0.05,2529.5,2528.9,3.95421]
[1727798720551,1.6335,2529.4,2528.9,3.95422]
[1727798720841,1.6335,2529.4,2529.3,3.95354]
[1727798721055,0.05,2529.5,2529.4,3.9535]
[1727798721421,19.53,2529.8,2529.7,3.95303]
[1727798722058,19.53,2529.8,2529.7,6.95303]
[1727798722620,19.53,2529.8,2529.7,3.0]
[1727798722816,21.1369,2529.8,2529.7,3.0]
[1727798723248,23.25059,2529.8,2529.7,3.95303]
[1727798723439,21.1369,2529.8,2529.7,3.95303]
[1727798723971,1.6069,2529.8,2529.7,3.95303]
[1727798724458,1.6069,2529.8,2529.7,6.95303]
[1727798724820,19.53,2530.0,2529.9,6.95272]
[1727798725167,19.53,2530.3,2530.2,3.95225]
[1727798725370,21.0863,2530.8,2530.3,6.9521]
[1727798725661,21.0863,2530.8,2530.6,3.0]
[1727798726021,23.590032,2530.8,2529.9,1.785861]
[1727798726225,1.6626,2530.7,2530.4,3.0]
[1727798727137,1.6626,2530.7,2530.6,3.95163]
[1727798727340,1.6626,2530.7,2530.6,6.95163]
[1727798727537,19.53,2530.8,2530.7,6.95147]
[1727798727736,1.6626,2531.0,2530.9,3.95116]
[1727798727948,1.6009,2531.2,2531.1,3.95082]
[1727798728134,19.53,2531.5,2531.1,6.95082]
[1727798728337,1.6009,2531.6,2531.5,3.95022]
[1727798728555,1.6009,2531.6,2531.4,7.90076]
[1727798728759,1.6009,2531.6,2531.5,3.95022]
[1727798729064,1.6009,2531.6,2531.4,7.90065]
[1727798729233,1.6009,2531.6,2531.2,6.95057]
[1727798729424,1.6009,2531.6,2531.2,10.90116]
[1727798729618,1.6009,2531.6,2531.3,3.95044]
[1727798729824,1.6009,2531.6,2531.5,6.95022]
[1727798730121,21.0852,2531.9,2531.8,3.94975]
[1727798730520,21.0852,2531.9,2531.6,3.0]
[1727798731471,3.94983,2531.8,2531.4,3.0]
[1727798731700,1.6089,2531.6,2530.7,0.55]
[1727798731971,21.1389,2531.6,2531.4,7.90058]
[1727798732190,0.09147164,2531.5,2531.4,3.95029]
[1727798732337,0.09147164,2531.5,2531.4,3.0]
[1727798732676,0.09147164,2531.5,2531.3,3.0]
[1727798732832,19.53,2531.4,2531.0,3.95093]
[1727798733176,0.09295215,2531.3,2531.0,3.95093]
[1727798733469,0.09295215,2531.3,2530.8,3.95123]
[1727798733470,1.6632,2531.2,2530.8,7.90246]
[1727798733669,21.1932,2531.2,2530.3,3.95205]
[1727798733990,21.1932,2531.2,2530.8,3.95121]
[1727798733991,0.09238656,2531.1,2530.8,3.95121]
[1727798734173,0.09238656,2531.1,2530.8,7.9024]
[1727798734495,0.09238656,2531.1,2531.0,3.951]
[1727798734784,0.09238656,2531.1,2531.0,6.951]
[1727798735159,0.09238656,2531.1,2530.1,1.11360944]
[1727798735160,2.05256387,2531.1,2530.4,3.0]
[1727798735368,19.53,2531.0,2530.5,3.0]
[1727798735565,19.53,2531.0,2530.4,3.95185]
[1727798735892,1.6245,2530.8,2530.4,3.95183]
[1727798736086,1.6245,2530.8,2530.6,3.95152]
[1727798736305,0.09168139,2530.7,2530.6,3.95152]
[1727798736751,19.53,2531.0,2530.8,3.95124]
[1727798736951,0.09164219,2530.7,2530.6,3.95152]
[1727798737148,3.95191,2530.5,2530.0,3.95255]
[1727798737385,5.40397776,2531.3,2529.9,3.9527]
[1727798737386,25.442361,2530.4,2529.9,3.9527]
[1727798737592,25.13830504,2530.4,2529.8,3.95285]
[1727798737761,3.95227,2530.2,2529.8,3.95285]
[1727798737966,25.13830504,2530.4,2529.8,3.95285]
[1727798738162,0.09105433,2530.1,2529.8,3.95285]
[1727798738376,3.95215,2530.3,2529.6,3.95309]
[1727798738377,5.51753,2530.2,2529.7,3.953]
[1727798738677,5.51753,2530.2,2529.6,3.95309]
[1727798738678,1.5652,2529.9,2529.6,3.95309]
[1727798739081,0.09070343,2529.8,2529.7,3.95303]
[1727798739661,0.09070343,2529.8,2529.7,9.35700776]
[1727798739859,19.53,2530.0,2529.9,3.95272]
[1727798740396,19.53,2530.0,2529.9,4.50272]
[1727798740568,19.53,2530.0,2529.9,8.743581]
[1727798741414,19.53,2530.8,2530.6,3.95163]
[1727798741579,3.95049,2531.4,2530.6,3.95163]
[1727798741580,1.6563,2531.0,2530.8,3.95131]
[1727798741902,1.6563,2531.0,2530.8,7.90252]
[1727798742058,1.6563,2531.0,2530.8,3.95121]
[1727798742258,1.6563,2531.0,2530.6,3.95152]
[1727798742468,4.170007,2531.0,2530.6,3.95152]
[1727798742756,4.170007,2531.0,2530.6,7.90304]
[1727798743069,4.170007,2531.0,2530.6,3.95152]
[1727798743275,4.170007,2531.0,2530.5,3.0]
[1727798743486,3.9514,2530.8,2530.4,3.0]
[1727798743797,1.5623,2530.7,2530.4,6.95193]
[1727798743999,1.5623,2530.7,2530.5,3.95178]
[1727798744409,1.5623,2530.7,2530.6,3.0]
[1727798744561,21.0923,2530.7,2530.4,3.0]
[1727798745398,21.0923,2530.7,2530.4,6.95193]
[1727798745906,24.03348207,2530.7,2529.7,3.95294]
[1727798746060,24.03348207,2530.7,2530.4,3.9519]
[1727798746061,19.53,2530.6,2530.4,3.9519]
[1727798746403,19.53,2530.6,2530.0,3.9525]
[1727798746404,19.53,2530.6,2530.5,3.95178]
[1727798747439,19.53,2531.0,2530.9,3.95116]
[1727798747740,1.6165,2531.1,2531.0,6.951]
[1727798747741,19.53,2531.1,2531.0,6.951]
[1727798747889,19.53,2531.5,2531.4,3.95038]
[1727798748090,1.6592,2531.7,2531.6,3.95007]
[1727798748342,19.53,2531.8,2531.6,7.90006]
[1727798748542,19.53,2531.8,2531.7,3.94991]
[1727798748892,1.5304,2532.0,2531.4,3.0]
[1727798748893,21.0604,2532.0,2531.4,3.0]
[1727798749137,21.0604,2532.0,2531.8,3.0]
[1727798749349,21.0604,2532.0,2531.8,6.94966]
[1727798749642,21.0604,2532.0,2531.8,3.0]
[1727798749937,21.0604,2532.0,2531.8,6.94961]
[1727798750345,21.0604,2532.0,2531.8,3.0]
[1727798750549,23.16644,2532.0,2531.6,6.95005]
[1727798750696,23.16644,2532.0,2531.4,3.0]
[1727798750900,21.0604,2532.0,2531.9,3.0]
[1727798751144,21.0604,2532.0,2531.7,6.9499]
[1727798751341,21.0604,2532.0,2531.8,3.94967]
[1727798751545,21.0604,2532.0,2531.9,6.9496]
[1727798751746,21.0616,2532.3,2532.0,3.94936]
[1727798751953,21.0616,2532.3,2531.9,6.9496]
[1727798751954,19.53,2532.2,2531.9,6.9496]
[1727798752252,19.53,2532.2,2532.1,6.94929]
[1727798752603,19.53,2532.2,2532.1,3.0]
[1727798753018,19.53,2532.2,2532.1,6.94929]
[1727798753235,19.53,2532.2,2532.0,3.94934]
[1727798753236,19.53,2532.2,2531.9,3.0]
[1727798753434,19.53,2532.2,2531.6,3.94998]
[1727798753435,1.5411,2532.0,2531.6,3.94998]
[1727798753643,1.5411,2532.0,2531.4,3.95027]
[1727798753855,19.53,2531.9,2531.4,3.95027]
[1727798754064,23.47964,2531.9,2531.4,3.95027]
[1727798754230,19.53,2531.9,2531.2,3.95056]
[1727798754437,6.451824,2531.8,2531.3,3.95051]
[1727798754753,6.451824,2531.8,2531.0,3.95096]
[1727798754754,1.5082,2531.7,2531.0,3.95096]
[1727798755060,1.5082,2531.7,2530.7,0.9912]
[1727798755061,1.5082,2531.7,2531.3,3.9504]
[1727798755762,19.53,2531.6,2531.0,3.95093]
[1727798755971,2.10382,2531.5,2531.1,3.95072]
[1727798756264,2.10382,2531.5,2531.3,3.95052]
[1727798756561,19.53,2531.6,2531.3,3.95052]
[1727798756766,19.53,2531.6,2531.5,3.95022]
[1727798757123,19.53,2531.6,2531.4,3.95036]
[1727798757124,19.53,2531.6,2531.4,3.95029]
[1727798757952,19.53,2531.6,2531.4,7.90058]
[1727798758248,19.53,2531.6,2531.5,3.95022]
[1727798758467,19.53,2531.6,2531.4,3.95036]
[1727798758791,19.53,2531.6,2531.5,6.95022]
[1727798759291,19.53,2531.6,2531.5,8.040271]
[1727798759499,19.53,2532.1,2531.9,3.94945]
[1727798759850,0.07770076,2532.0,2531.9,3.94945]
[1727798760377,0.07770076,2532.0,2531.4,0.9912]
[1727798760378,0.07770076,2532.0,2531.6,3.94998]
[1727798760582,2.59263784,2532.0,2531.6,3.0]
[1727798760755,2.59263784,2532.0,2531.7,3.94978]
[1727798760955,2.59263784,2532.0,2531.8,3.94974]
[1727798761155,3.94963,2531.9,2531.4,6.95026]
[1727798761389,1.6468,2531.8,2531.6,3.0]
[1727798761695,1.72140913,2531.8,2531.5,3.0]
[1727798761902,2.54029791,2531.8,2531.3,3.0]
[1727798762057,2.54029791,2531.8,2531.2,3.0]
[1727798762260,3.9504,2531.4,2530.9,3.95107]
[1727798762486,19.60417398,2531.3,2531.2,3.95069]
[1727798763158,19.60417398,2531.3,2531.1,3.95084]
[1727798763358,19.60417398,2531.3,2530.9,7.90216]
[1727798763558,19.60417398,2531.3,2530.9,3.95106]
[1727798763874,19.60417398,2531.3,2531.2,3.95069]
[1727798764076,19.60417398,2531.3,2531.2,6.95069]
[1727798764077,0.07417398,2531.3,2531.2,6.95069]
[1727798764563,19.53,2531.8,2531.7,6.94991]
[1727798764759,1.5232,2531.9,2531.8,3.0]
[1727798764962,1.5232,2531.9,2531.7,3.0]
[1727798765273,4.023459,2531.9,2531.5,3.95015]
[1727798765519,7.973059,2531.9,2531.5,3.95015]
[1727798765840,4.023459,2531.9,2531.6,3.95003]
[1727798766154,4.023459,2531.9,2531.4,3.95028]
[1727798766303,4.023459,2531.9,2531.6,3.95005]
[1727798766505,4.023459,2531.9,2531.5,3.0]
[1727798766506,2.3553459,2531.8,2531.5,3.0]
[1727798766725,6.3051559,2531.8,2531.5,3.0]
[1727798766946,5.558,2531.7,2531.2,3.9506]
[1727798767148,1.608,2531.7,2531.4,3.95036]
[1727798767305,2.64934149,2531.7,2531.3,3.95041]
[1727798767747,2.64934149,2531.7,2530.7,0.9912]
[1727798767748,1.608,2531.7,2531.5,3.95015]
[1727798767912,1.608,2531.7,2531.6,3.95007]
[1727798768115,21.0705,2532.0,2531.9,3.9496]
[1727798768333,21.0726,2532.3,2531.9,3.9496]
[1727798768607,21.0726,2532.3,2532.0,3.94943]
[1727798768831,24.312734,2532.3,2532.0,3.94943]
[1727798769316,21.0726,2532.3,2531.2,0.9912]
[1727798769522,25.02166,2532.3,2531.8,3.94962]
[1727798769721,25.02166,2532.3,2531.6,3.94994]
[1727798769722,3.94926,2532.2,2531.7,6.9499]
[1727798769942,25.02165,2532.3,2531.7,3.0]
[1727798769943,3.94929,2532.1,2531.7,3.0]
[1727798770128,6.846388,2532.1,2531.7,3.0]
[1727798770335,2.897098,2532.1,2531.7,6.9499]
[1727798770637,28.97078,2532.3,2531.8,3.94973]
[1727798770839,21.0726,2532.3,2531.9,3.94956]
[1727798771051,21.0726,2532.3,2532.2,3.94913]
[1727798771052,1.5426,2532.3,2532.2,3.94913]
[1727798771227,11.32829,2532.8,2532.3,3.94889]
[1727798771228,1.6287,2532.7,2532.3,3.94889]
[1727798771427,19.53,2532.6,2532.4,3.94868]
[1727798771631,1.6287,2532.7,2532.0,3.94938]
[1727798771632,21.1587,2532.7,2532.6,3.0]
[1727798771962,21.1587,2532.7,2532.4,3.0]
[1727798771963,19.53,2532.7,2532.4,3.0]
[1727798772121,19.53,2532.7,2532.5,3.0]
[1727798772323,19.53,2532.7,2532.6,6.94851]
[1727798773625,19.53,2532.7,2532.6,3.0]
[1727798773967,21.483,2532.7,2532.6,3.0]
[1727798774163,19.53,2532.7,2532.6,6.94851]
[1727798774525,19.53,2532.7,2532.4,3.0]
[1727798774721,19.53,2532.7,2532.1,3.94927]
[1727798774722,5.59044,2532.6,2532.1,3.94927]
[1727798775664,5.59044,2532.6,2531.4,0.9912]